bitfinex/quotes_BTCUSD_20250218
["timestamp","ask_amount","ask_price","bid_price","bid_amount"]
[1739900624117,0.32928013,94568.0,94567.0,0.0805404]
[1739900626102,0.309616,94568.0,94567.0,0.0805404]
[1739900627419,0.32618583,94568.0,94567.0,0.0805404]
[1739900629482,0.37749425,94568.0,94567.0,0.0805404]
[1739900630668,0.06887825,94568.0,94567.0,0.0805404]
[1739900630880,0.22749425,94568.0,94567.0,0.0805404]
[1739900632025,0.17618583,94568.0,94567.0,0.0805404]
[1739900633019,0.159616,94568.0,94567.0,0.0805404]
[1739900634728,0.17933413,94568.0,94567.0,0.0805404]
[1739900634909,0.02071813,94568.0,94567.0,0.0805404]
[1739900636196,0.001,94568.0,94567.0,0.0805404]
[1739900638881,0.01656934,94572.0,94567.0,0.0805404]
[1739900639080,0.158612,94571.0,94567.0,0.0805404]
[1739900639212,0.15861,94571.0,94567.0,0.0805404]
[1739900639415,0.01656934,94572.0,94569.0,0.0815]
[1739900639914,0.158612,94570.0,94569.0,0.0815]
[1739900640168,0.159611,94571.0,94569.0,0.0815]
[1739900640370,0.001,94571.0,94569.0,0.0815]
[1739900640576,0.17517934,94572.0,94569.0,0.0815]
[1739900640773,0.01756934,94572.0,94570.0,0.03625017]
[1739900641066,0.01756934,94572.0,94571.0,0.0795]
[1739900641278,0.01656934,94572.0,94571.0,0.0795]
[1739900641570,0.01656934,94572.0,94571.0,0.10697126]
[1739900641747,0.01656934,94572.0,94571.0,0.28561]
[1739900641952,0.01656934,94572.0,94571.0,0.38811365]
[1739900642161,0.0001703,94581.0,94572.0,0.293379]
[1739900642366,0.0001703,94581.0,94578.0,0.0819]
[1739900642568,0.0001703,94581.0,94579.0,0.04803898]
[1739900642777,0.0001703,94581.0,94580.0,0.0809]
[1739900643164,0.0001703,94581.0,94580.0,0.38949865]
[1739900643367,0.0001703,94581.0,94580.0,0.38849865]
[1739900643729,0.0001703,94581.0,94580.0,0.22990365]
[1739900643931,0.0001703,94581.0,94580.0,0.20866781]
[1739900643932,0.0011703,94581.0,94580.0,0.20866781]
[1739900644239,0.0001703,94581.0,94580.0,0.20866781]
[1739900644454,0.0011703,94581.0,94580.0,0.20866781]
[1739900645006,0.0011703,94581.0,94580.0,0.46976646]
[1739900645438,0.0011703,94581.0,94580.0,0.31117146]
[1739900645644,0.0001703,94581.0,94580.0,0.31117146]
[1739900645842,0.0001703,94581.0,94580.0,0.47076646]
[1739900646119,0.0011703,94581.0,94580.0,0.47076646]
[1739900646325,0.0011703,94581.0,94580.0,0.31217146]
[1739900646528,0.0011703,94581.0,94580.0,0.47076646]
[1739900647132,0.0011703,94581.0,94580.0,0.31217146]
[1739900647467,0.0011703,94581.0,94580.0,0.20966781]
[1739900647870,0.0011703,94581.0,94580.0,0.16216781]
[1739900648072,0.1597643,94581.0,94580.0,0.0809]
[1739900648476,0.32633174,94581.0,94580.0,0.001]
[1739900648683,0.158609,94572.0,94571.0,0.0807]
[1739900649947,0.158609,94572.0,94567.0,0.0003404]
[1739900649948,0.158616,94568.0,94567.0,0.0003404]
[1739900651274,0.17518638,94568.0,94567.0,0.0003404]
[1739900652129,0.158616,94568.0,94567.0,0.0003404]
[1739900654064,0.159616,94568.0,94567.0,0.0013404]
[1739900654270,0.158616,94568.0,94567.0,0.0003404]
[1739900654691,0.159616,94568.0,94567.0,0.0013404]
[1739900654902,0.309616,94568.0,94567.0,0.0013404]
[1739900656540,0.32618726,94568.0,94567.0,0.0013404]
[1739900661188,0.32614726,94568.0,94567.0,0.0013404]
[1739900663080,0.309576,94568.0,94567.0,0.0013404]
[1739900666194,0.32614697,94568.0,94567.0,0.0013404]
[1739900668146,0.32514697,94568.0,94567.0,0.0003404]
[1739900668593,0.32514697,94568.0,94567.0,4e-07]
[1739900668594,0.37244697,94568.0,94567.0,4e-07]
[1739900669162,0.84949227,94568.0,94567.0,4e-07]
[1739900669364,0.85049227,94568.0,94567.0,0.0010004]
[1739900669594,0.84949227,94568.0,94567.0,4e-07]
[1739900669908,0.84949227,94568.0,94567.0,0.0010004]
[1739900670271,1.15199592,94568.0,94567.0,4e-07]
[1739900670884,0.531629,94560.0,94559.0,8e-07]
[1739900671090,0.531629,94560.0,94559.0,5.5e-07]
[1739900671091,0.662529,94560.0,94559.0,5.5e-07]
[1739900671306,0.2,94545.0,94544.0,5.5e-07]
[1739900671511,5.358656,94544.0,94543.0,9.5e-07]
[1739900671719,0.308659,94542.0,94541.0,7.5e-07]
[1739900671973,0.308668,94537.0,94536.0,7.5e-07]
[1739900672176,0.21601734,94537.0,94536.0,7.5e-07]
[1739900672388,0.37468534,94537.0,94536.0,7.5e-07]
[1739900672596,0.39768534,94537.0,94536.0,7.5e-07]
[1739900673276,0.41768534,94537.0,94536.0,7.5e-07]
[1739900673474,0.67799038,94537.0,94536.0,7.5e-07]
[1739900673687,0.69799038,94537.0,94536.0,7.5e-07]
[1739900674677,0.69799038,94537.0,94511.0,0.0002]
[1739900674678,0.30871,94512.0,94511.0,0.0002]
[1739900674847,5.35871,94512.0,94511.0,0.0002]
[1739900675048,5.8360374,94512.0,94511.0,0.0002]
[1739900675277,5.8360374,94512.0,94511.0,1e-06]
[1739900675649,5.8590374,94512.0,94511.0,1e-06]
[1739900675861,5.8590374,94512.0,94511.0,0.00044232]
[1739900676057,5.96154105,94512.0,94511.0,3.2e-07]
[1739900676287,1.75466765,94512.0,94511.0,3.2e-07]
[1739900676486,1.82322915,94512.0,94511.0,3.2e-07]
[1739900676639,1.80067938,94512.0,94511.0,3.2e-07]
[1739900676838,1.97166296,94512.0,94511.0,3.2e-07]
[1739900677088,1.97266296,94512.0,94511.0,3.2e-07]
[1739900677289,1.98824811,94512.0,94511.0,3.2e-07]
[1739900678524,1.98824811,94512.0,94486.0,9.2e-07]
[1739900678525,0.708751,94487.0,94486.0,9.2e-07]
[1739900678850,1.62628024,94487.0,94486.0,9.2e-07]
[1739900679054,1.62628024,94487.0,94471.0,1.2e-07]
[1739900679055,0.158775,94473.0,94471.0,1.2e-07]
[1739900679258,5.223,94472.0,94471.0,1.2e-07]
[1739900679462,0.15,94472.0,94471.0,1.2e-07]
[1739900679879,0.20033526,94472.0,94471.0,1.2e-07]
[1739900680438,0.3761433,94472.0,94471.0,1.2e-07]
[1739900680615,0.37481977,94472.0,94471.0,1.2e-07]
[1739900680823,0.34880804,94472.0,94471.0,1.2e-07]
[1739900681020,0.34880804,94472.0,94442.0,0.0782]
[1739900681021,0.15882,94446.0,94442.0,0.0782]
[1739900681225,0.158822,94445.0,94442.0,0.0782]
[1739900682734,0.159822,94445.0,94442.0,0.0782]
[1739900683139,0.158822,94445.0,94442.0,0.0782]
[1739900683340,0.159822,94445.0,94442.0,0.0782]
[1739900684567,0.001,94445.0,94442.0,0.0782]
[1739900685652,0.211709,94469.0,94446.0,0.0765]
[1739900685875,0.21214394,94472.0,94456.0,0.0755]
[1739900685876,0.01658843,94470.0,94456.0,0.0755]
[1739900686082,0.158801,94458.0,94456.0,0.0755]
[1739900686279,0.01658843,94470.0,94456.0,0.0755]
[1739900686597,0.158795,94461.0,94457.0,0.01602058]
[1739900687038,0.01658843,94470.0,94457.0,0.01602058]
[1739900687303,0.17536943,94470.0,94457.0,0.01502058]
[1739900687634,0.158782,94469.0,94458.0,0.04704643]
[1739900687836,0.00044094,94472.0,94459.0,0.01467728]
[1739900688039,0.00044094,94472.0,94458.0,0.04704643]
[1739900688241,0.15882,94446.0,94445.0,0.37150514]
[1739900688429,0.15882,94446.0,94445.0,0.08470583]
[1739900688651,0.158822,94445.0,94444.0,60.43482088]
[1739900689250,0.158822,94445.0,94444.0,60.51532088]
[1739900689844,0.158822,94445.0,94444.0,60.43482088]
[1739900690338,0.158822,94445.0,94444.0,60.44182088]
[1739900690489,0.308822,94445.0,94444.0,60.44182088]
[1739900691600,0.308822,94445.0,94444.0,60.43482088]
[1739900691827,0.32541362,94445.0,94444.0,60.44182088]
[1739900692003,0.32641362,94445.0,94444.0,60.44182088]
[1739900693090,0.309822,94445.0,94444.0,60.44182088]
[1739900694859,0.308822,94445.0,94444.0,60.43482088]
[1739900695063,0.309822,94445.0,94444.0,60.44082088]
[1739900695512,0.308822,94445.0,94444.0,60.43482088]
[1739900695721,0.309822,94445.0,94444.0,60.43982088]
[1739900695930,0.309822,94445.0,94444.0,60.43482088]
[1739900696333,0.002,94445.0,94444.0,60.44082088]
[1739900696540,0.158822,94445.0,94444.0,60.43482088]
[1739900697318,0.158722,94445.0,94444.0,60.43482088]
[1739900697901,0.159722,94445.0,94444.0,60.44082088]
[1739900698084,0.159722,94445.0,94444.0,60.43482088]
[1739900698932,0.160722,94445.0,94444.0,60.44082088]
[1739900699331,0.159722,94445.0,94444.0,60.43482088]
[1739900699542,0.160722,94445.0,94444.0,60.44082088]
[1739900700750,0.160722,94445.0,94444.0,60.44099138]
[1739900700952,0.002,94445.0,94444.0,60.62039503]
[1739900701163,0.002,94445.0,94444.0,60.72289868]
[1739900701364,0.158816,94449.0,94444.0,60.71689868]
[1739900701577,0.158822,94445.0,94444.0,60.61939503]
[1739900701784,0.159822,94445.0,94444.0,60.51689138]
[1739900701983,0.001,94445.0,94444.0,60.51189138]
[1739900702224,0.160822,94445.0,94444.0,60.51789138]
[1739900702687,0.159822,94445.0,94444.0,60.51189138]
[1739900702903,0.160822,94445.0,94444.0,60.51789138]
[1739900704979,0.002,94445.0,94444.0,60.51789138]
[1739900705361,0.160822,94445.0,94444.0,60.51789138]
[1739900705699,0.158822,94445.0,94444.0,60.51189138]
[1739900706028,0.159822,94445.0,94444.0,60.51789138]
[1739900707200,0.158822,94445.0,94444.0,60.51189138]
[1739900707399,0.19350006,94447.0,94444.0,60.51189138]
[1739900707629,0.159822,94445.0,94444.0,60.51789138]
[1739900707829,0.159822,94445.0,94444.0,60.51189138]
[1739900708632,0.160822,94445.0,94444.0,60.51689138]
[1739900709186,0.158822,94445.0,94444.0,60.51189138]
[1739900709473,0.158822,94445.0,94444.0,60.61439503]
[1739900710420,0.159822,94445.0,94444.0,60.62039503]
[1739900710622,0.158822,94445.0,94444.0,60.61439503]
[1739900710829,0.158822,94445.0,94444.0,60.43499138]
[1739900711053,0.159822,94445.0,94444.0,60.44099138]
[1739900711266,0.158822,94445.0,94444.0,60.43499138]
[1739900711466,0.158822,94445.0,94444.0,60.44099138]
[1739900711715,0.159822,94445.0,94444.0,60.44099138]
[1739900711919,0.159822,94445.0,94444.0,60.43499138]
[1739900712328,0.160822,94445.0,94444.0,60.44099138]
[1739900712516,0.1611632,94445.0,94444.0,60.44099138]
[1739900712751,0.21780513,94445.0,94444.0,60.44099138]
[1739900713049,0.3111632,94445.0,94444.0,60.44099138]
[1739900713590,0.3091632,94445.0,94444.0,60.43499138]
[1739900713759,0.5091632,94445.0,94444.0,60.43499138]
[1739900714019,0.5091632,94445.0,94444.0,60.44199138]
[1739900714224,0.60538513,94445.0,94444.0,60.43499138]
[1739900714433,0.5091632,94445.0,94444.0,60.43899138]
[1739900714651,0.3091632,94445.0,94444.0,60.43899138]
[1739900714872,0.3091632,94445.0,94444.0,60.43499138]
[1739900715073,0.1591632,94445.0,94444.0,60.43499138]
[1739900716834,0.1591632,94445.0,94444.0,60.43599138]
[1739900717229,0.1591632,94445.0,94444.0,60.43499138]
[1739900717457,0.1591632,94445.0,94444.0,60.43999138]
[1739900718936,0.23060513,94445.0,94444.0,60.43999138]
[1739900719110,0.1591632,94445.0,94444.0,60.43999138]
[1739900720144,0.1591632,94445.0,94444.0,60.43499138]
[1739900720817,0.1591632,94445.0,94444.0,60.43599138]
[1739900721243,0.1591632,94445.0,94444.0,60.43499138]
[1739900721444,0.1591632,94445.0,94444.0,60.43599138]
[1739900722052,0.18030515,94445.0,94444.0,60.43599138]
[1739900724431,1.15510623,94445.0,94444.0,60.43599138]
[1739900724651,1.05758975,94445.0,94444.0,60.43599138]
[1739900724858,6.10758975,94445.0,94444.0,60.43599138]
[1739900725058,1.15788975,94445.0,94444.0,60.43599138]
[1739900725240,0.43060515,94445.0,94444.0,60.43599138]
[1739900725446,0.3091632,94445.0,94444.0,60.43599138]
[1739900726244,0.3091632,94445.0,94444.0,60.43499138]
[1739900726647,0.3121632,94445.0,94444.0,60.43499138]
[1739900727183,0.3091632,94445.0,94444.0,60.43499138]
[1739900727474,0.3121632,94445.0,94444.0,60.43499138]
[1739900727852,0.3121632,94445.0,94444.0,60.43799138]
[1739900728297,0.3091632,94445.0,94444.0,60.43499138]
[1739900729254,0.1591632,94445.0,94444.0,60.43499138]
[1739900729662,0.1591632,94445.0,94444.0,60.43899138]
[1739900729855,0.1591632,94445.0,94444.0,60.43499138]
[1739900730265,0.1591632,94445.0,94444.0,60.43799138]
[1739900730459,0.1591632,94445.0,94444.0,60.43499138]
[1739900730930,0.1591632,94445.0,94444.0,60.43999138]
[1739900733846,0.0003412,94445.0,94444.0,60.43999138]
[1739900734101,0.1591632,94445.0,94444.0,60.43999138]
[1739900735866,0.1590632,94445.0,94444.0,60.43999138]
[1739900737994,0.3090632,94445.0,94444.0,60.43999138]
[1739900739697,0.3090632,94445.0,94444.0,60.43499138]
[1739900739893,0.3090632,94445.0,94444.0,60.43699138]
[1739900740120,0.3090632,94445.0,94444.0,60.43499138]
[1739900740535,0.3090632,94445.0,94444.0,60.43699138]
[1739900741021,0.3090632,94445.0,94444.0,60.43499138]
[1739900741432,0.3090632,94445.0,94444.0,60.43699138]
[1739900741648,0.3090632,94445.0,94444.0,60.43499138]
[1739900742857,0.3090632,94445.0,94444.0,60.43599138]
[1739900743059,0.3090632,94445.0,94444.0,60.43499138]
[1739900743475,0.33013312,94445.0,94444.0,60.43599138]
[1739900746111,0.33013312,94445.0,94444.0,60.43499138]
[1739900746731,0.33013312,94445.0,94444.0,60.43599138]
[1739900747211,0.158822,94445.0,94444.0,60.43599138]
[1739900749124,0.158822,94445.0,94444.0,60.51809138]
[1739900749328,0.308822,94445.0,94444.0,60.52109138]
[1739900750287,0.308822,94445.0,94444.0,60.43799138]
[1739900755582,0.308822,94445.0,94444.0,60.43499138]
[1739900756049,0.308822,94445.0,94444.0,60.43799138]
[1739900756297,0.308822,94445.0,94444.0,60.43499138]
[1739900756519,0.308822,94445.0,94444.0,60.43787008]
[1739900756930,0.308822,94445.0,94444.0,60.43487008]
[1739900757140,0.308822,94445.0,94444.0,60.43687008]
[1739900758547,0.308822,94445.0,94444.0,60.43487008]
[1739900759023,0.308822,94445.0,94444.0,60.43687008]
[1739900759229,0.308822,94445.0,94444.0,60.43487008]
[1739900759446,0.3091624,94445.0,94444.0,60.43487008]
[1739900760129,0.3091624,94445.0,94444.0,60.43687008]
[1739900760359,0.3091624,94445.0,94444.0,60.43487008]
[1739900760579,0.3091624,94445.0,94444.0,60.51647008]
[1739900760803,0.3091624,94445.0,94444.0,60.51847008]
[1739900761468,0.3091624,94445.0,94444.0,60.43687008]
[1739900762077,0.3091624,94445.0,94444.0,60.43487008]
[1739900762297,0.3091624,94445.0,94444.0,60.43787008]
[1739900762536,0.3091624,94445.0,94444.0,60.43487008]
[1739900762985,0.3091624,94445.0,94444.0,60.43687008]
[1739900763232,0.3091624,94445.0,94444.0,60.43487008]
[1739900763406,0.3091624,94445.0,94444.0,60.43687008]
[1739900763933,0.3091624,94445.0,94444.0,60.43487008]
[1739900765050,0.3091624,94445.0,94444.0,60.43587008]
[1739900765253,0.3091624,94445.0,94444.0,60.43487008]
[1739900765612,0.3091624,94445.0,94444.0,60.43587008]
[1739900765813,0.1591624,94445.0,94444.0,60.43487008]
[1739900766613,0.1591624,94445.0,94444.0,60.43687008]
[1739900766811,0.1591624,94445.0,94444.0,60.43487008]
[1739900767256,0.1591624,94445.0,94444.0,60.51546041]
[1739900768200,0.3091624,94445.0,94444.0,60.51846041]
[1739900768420,0.3091624,94445.0,94444.0,60.51546041]
[1739900768801,0.3091624,94445.0,94444.0,60.51846041]
[1739900769030,0.3091624,94445.0,94444.0,60.51546041]
[1739900769470,0.3091624,94445.0,94444.0,60.51946041]
[1739900769690,0.3091624,94445.0,94444.0,60.51546041]
[1739900769984,0.3091624,94445.0,94444.0,60.51936318]
[1739900771313,0.3091624,94445.0,94444.0,60.51536318]
[1739900771553,0.3091624,94445.0,94444.0,60.43766318]
[1739900771729,0.3091624,94445.0,94444.0,60.43756596]
[1739900771956,0.3091624,94445.0,94444.0,60.43456596]
[1739900772342,0.3091624,94445.0,94444.0,60.43756596]
[1739900772542,0.3091624,94445.0,94444.0,60.43456596]
[1739900772966,0.3091624,94445.0,94444.0,60.43556596]
[1739900773170,0.3091624,94445.0,94444.0,60.43456596]
[1739900774706,0.3091624,94445.0,94444.0,60.43556596]
[1739900774904,0.3091624,94445.0,94444.0,60.43456596]
[1739900775119,0.3091624,94445.0,94444.0,60.43556596]
[1739900775818,0.3091624,94445.0,94444.0,60.43506596]
[1739900777486,0.3091624,94445.0,94444.0,60.43406596]
[1739900777951,0.3091624,94445.0,94444.0,60.43506596]
[1739900780621,0.3091624,94445.0,94444.0,60.43406596]
[1739900780982,0.3091624,94445.0,94444.0,60.43179877]
[1739900781689,0.7868434,94445.0,94444.0,60.42979877]
[1739900781899,5.8368434,94445.0,94444.0,60.42979877]
[1739900783474,5.8368434,94445.0,94444.0,60.43079877]
[1739900784541,5.8598434,94445.0,94444.0,60.42979877]
[1739900784922,5.8598434,94445.0,94444.0,60.43079877]
[1739900785132,5.8598434,94445.0,94444.0,60.42979877]
[1739900785351,5.8598434,94445.0,94444.0,60.41679877]
[1739900785533,5.95374605,94445.0,94444.0,60.41779877]
[1739900786540,2.27204605,94445.0,94444.0,60.41779877]
[1739900786763,1.58374605,94445.0,94444.0,60.41779877]
[1739900786971,0.40306505,94445.0,94444.0,60.41779877]
[1739900787527,5.77279838,94445.0,94444.0,60.41779877]
[1739900787736,6.05459838,94445.0,94444.0,60.41779877]
[1739900787945,6.05459838,94445.0,94444.0,60.41300517]
[1739900788725,5.95373215,94445.0,94444.0,60.41300517]
[1739900789486,5.8598295,94445.0,94444.0,60.41300517]
[1739900794761,5.8598295,94445.0,94444.0,60.41001197]
[1739900794971,5.69713738,94445.0,94444.0,60.41001197]
[1739900795759,5.85595938,94445.0,94444.0,60.41001197]
[1739900795939,5.95846303,94445.0,94444.0,60.41001197]
[1739900796094,5.85595938,94445.0,94444.0,60.41001197]
[1739900797458,0.80595938,94445.0,94444.0,60.41001197]
[1739900797867,5.85595938,94445.0,94444.0,60.41001197]
[1739900800132,5.92561611,94445.0,94444.0,60.26283279]
[1739900800306,6.68379226,94445.0,94444.0,56.79302879]
[1739900800763,6.76679226,94445.0,94444.0,54.28769079]
[1739900800963,6.79189857,94445.0,94444.0,53.49688979]
[1739900801397,6.79189857,94445.0,94444.0,53.49588979]
[1739900801530,6.79689857,94445.0,94444.0,52.95008471]
[1739900801944,6.79689857,94445.0,94444.0,52.94908471]
[1739900802140,6.80189857,94445.0,94444.0,52.95008471]
[1739900802945,6.79189857,94445.0,94444.0,52.94908471]
[1739900803543,6.80296297,94445.0,94444.0,52.94908471]
[1739900804317,6.78996297,94445.0,94444.0,52.94908471]
[1739900804521,6.80996297,94445.0,94444.0,52.94908471]
[1739900804729,6.80996297,94445.0,94444.0,52.40227963]
[1739900806044,6.80996297,94445.0,94444.0,52.35227963]
[1739900806652,5.59006297,94445.0,94444.0,51.13937963]
[1739900806849,5.55296297,94445.0,94444.0,51.10227963]
[1739900807256,5.47196297,94445.0,94444.0,51.02547963]
[1739900807676,5.72955537,94445.0,94444.0,51.02547963]
[1739900808008,5.73655537,94445.0,94444.0,51.02547963]
[1739900808254,2.01055537,94445.0,94444.0,51.02547963]
[1739900808465,5.72885537,94445.0,94444.0,51.02547963]
[1739900808672,5.73585537,94445.0,94444.0,51.02547963]
[1739900809299,5.70619864,94445.0,94444.0,51.02547963]
[1739900809431,5.84755537,94445.0,94444.0,51.02547963]
[1739900809643,5.73585537,94445.0,94444.0,51.02547963]
[1739900809853,5.72885537,94445.0,94444.0,51.02547963]
[1739900810080,5.84045537,94445.0,94444.0,51.02547963]
[1739900810898,5.84045537,94445.0,94444.0,50.37793169]
[1739900811101,5.84045537,94445.0,94444.0,50.34564631]
[1739900811102,5.81779864,94445.0,94444.0,50.34564631]
[1739900811311,5.82476492,94445.0,94444.0,50.34564631]
[1739900811519,5.99079864,94445.0,94444.0,50.34564631]
[1739900811727,5.93316492,94445.0,94444.0,50.34564631]
[1739900811930,5.91316492,94445.0,94444.0,50.34564631]
[1739900812168,5.93105564,94445.0,94444.0,50.34564631]
[1739900812560,5.93991561,94445.0,94444.0,50.34564631]
[1739900812791,5.95579335,94445.0,94444.0,50.34564631]
[1739900813000,5.93991561,94445.0,94444.0,50.34564631]
[1739900813450,5.93941561,94445.0,94444.0,50.34564631]
[1739900813634,5.96229335,94445.0,94444.0,50.34564631]
[1739900815233,6.06689335,94445.0,94444.0,50.34564631]
[1739900815469,6.55504031,94445.0,94444.0,50.34564631]
[1739900815675,6.81904031,94445.0,94444.0,50.34564631]
[1739900815873,6.55478831,94445.0,94444.0,50.34564631]
[1739900816403,6.53138831,94445.0,94444.0,50.31564631]
[1739900816907,6.47078831,94445.0,94444.0,50.25564631]
[1739900817062,6.45628831,94445.0,94444.0,50.22976731]
[1739900817262,6.44618831,94445.0,94444.0,50.22976731]
[1739900817447,6.08218831,94445.0,94444.0,50.11966731]
[1739900817650,6.06848831,94445.0,94444.0,50.09896731]
[1739900817841,5.94048831,94445.0,94444.0,49.97096731]
[1739900818047,5.93348831,94445.0,94444.0,49.97096731]
[1739900818292,5.94048831,94445.0,94444.0,49.97096731]
[1739900818739,5.90638831,94445.0,94444.0,49.93726731]
[1739900819213,5.79738831,94445.0,94444.0,49.84726731]
[1739900819424,5.68578831,94445.0,94444.0,49.84726731]
[1739900819620,5.68578831,94445.0,94444.0,49.82426731]
[1739900819829,5.62178831,94445.0,94444.0,49.78416731]
[1739900820039,5.58728831,94445.0,94444.0,49.73636731]
[1739900820253,4.93748706,94445.0,94444.0,49.35596731]
[1739900820656,4.92428706,94445.0,94444.0,49.33596731]
[1739900820815,4.83748706,94445.0,94444.0,49.24376731]
[1739900821016,3.72123906,94445.0,94444.0,47.07846223]
[1739900821228,3.46423906,94445.0,94444.0,46.46349977]
[1739900821535,3.45123906,94445.0,94444.0,46.29680429]
[1739900821764,3.46423906,94445.0,94444.0,46.29680429]
[1739900822010,3.6980849,94445.0,94444.0,46.14580429]
[1739900822514,3.8440849,94445.0,94444.0,42.67280429]
[1739900822746,3.8510849,94445.0,94444.0,39.95480429]
[1739900822966,3.8510849,94445.0,94444.0,39.19980429]
[1739900823211,3.6310849,94445.0,94444.0,39.04880429]
[1739900823455,3.66754088,94445.0,94444.0,39.04880429]
[1739900823701,3.7173849,94445.0,94444.0,39.04880429]
[1739900823854,3.7333849,94445.0,94444.0,39.04880429]
[1739900824061,3.7403849,94445.0,94444.0,39.04880429]
[1739900824467,3.7333849,94445.0,94444.0,39.04880429]
[1739900824714,3.7403849,94445.0,94444.0,39.04880429]
[1739900825104,3.7333849,94445.0,94444.0,39.04880429]
[1739900825440,3.8676849,94445.0,94444.0,37.50199921]
[1739900825648,2.8523849,94445.0,94444.0,37.50199921]
[1739900826052,7.9106849,94445.0,94444.0,37.50199921]
[1739900826253,7.9106849,94445.0,94444.0,37.12948412]
[1739900826455,7.9106849,94445.0,94444.0,36.81092148]
[1739900826668,7.9106849,94445.0,94444.0,36.4923656]
[1739900826876,7.70619988,94445.0,94444.0,36.4923656]
[1739900827054,7.36689988,94445.0,94444.0,36.17382664]
[1739900827211,7.3341329,94445.0,94444.0,36.17382664]
[1739900827416,7.3341329,94445.0,94444.0,35.21818607]
[1739900827614,7.3411329,94445.0,94444.0,34.89963696]
[1739900827939,7.39389988,94445.0,94444.0,34.26254212]
[1739900828141,7.89389988,94445.0,94444.0,32.86844006]
[1739900828350,8.15115188,94445.0,94444.0,31.88590199]
[1739900828550,8.15115188,94445.0,94444.0,31.56731567]
[1739900828760,8.15115188,94445.0,94444.0,30.93019039]
[1739900828922,8.15115188,94445.0,94444.0,30.29306511]
[1739900829127,8.15115188,94445.0,94444.0,29.2657231]
[1739900829327,8.25575188,94445.0,94444.0,28.38128767]
[1739900829575,8.23914604,94445.0,94444.0,28.38128767]
[1739900829726,7.77744604,94445.0,94444.0,27.28023871]
[1739900829928,6.27744604,94445.0,94444.0,25.12792358]
[1739900830134,6.27744604,94445.0,94444.0,25.11559142]
[1739900830345,6.01894604,94445.0,94444.0,24.5410254]
[1739900830797,5.76169404,94445.0,94444.0,23.90389674]
[1739900830973,5.76869404,94445.0,94444.0,23.35709166]
[1739900831227,5.95559206,94445.0,94444.0,22.72000697]
[1739900831426,5.94551502,94445.0,94444.0,22.72000697]
[1739900831699,5.96551502,94445.0,94444.0,22.72000697]
[1739900832274,6.28271502,94445.0,94444.0,22.40146462]
[1739900832478,6.34916293,94445.0,94444.0,21.66042101]
[1739900832636,6.34916293,94445.0,94444.0,21.02332617]
[1739900832840,6.35616293,94445.0,94444.0,20.70428721]
[1739900833035,6.33616293,94445.0,94444.0,20.70428721]
[1739900833385,6.35616293,94445.0,94444.0,20.70428721]
[1739900833589,6.35616293,94445.0,94444.0,20.38574486]
[1739900833794,6.32919665,94445.0,94444.0,20.0672059]
[1739900833997,6.32919665,94445.0,94444.0,19.52040082]
[1739900834198,6.30632212,94445.0,94444.0,19.52040082]
[1739900834413,6.3332884,94445.0,94444.0,18.88330937]
[1739900834613,6.3332884,94445.0,94444.0,18.54516702]
[1739900834812,6.3132884,94445.0,94444.0,18.22662806]
[1739900834950,6.3332884,94445.0,94444.0,18.22662806]
[1739900835167,6.3332884,94445.0,94444.0,17.58954675]
[1739900835397,6.3332884,94445.0,94444.0,17.27100102]
[1739900835398,5.84514144,94445.0,94444.0,17.27100102]
[1739900835799,6.07517516,94445.0,94444.0,16.95246206]
[1739900835998,6.01602212,94445.0,94444.0,16.95246206]
[1739900836219,5.97302212,94445.0,94444.0,16.95246206]
[1739900836422,5.99302212,94445.0,94444.0,16.95246206]
[1739900837051,6.01602212,94445.0,94444.0,16.6339231]
[1739900837271,6.01602212,94445.0,94444.0,16.31538414]
[1739900837501,6.00902212,94445.0,94444.0,16.31538414]
[1739900837693,6.01602212,94445.0,94444.0,15.35976387]
[1739900837921,5.52787516,94445.0,94444.0,15.35976387]
[1739900838109,5.52087516,94445.0,94444.0,15.04122152]
[1739900838271,5.52787516,94445.0,94444.0,15.04122152]
[1739900838684,6.00902212,94445.0,94444.0,14.72267917]
[1739900838936,3.49722212,94445.0,94444.0,14.40414021]
[1739900839133,6.00902212,94445.0,94444.0,14.08560125]
[1739900839331,5.75202212,94445.0,94444.0,13.44849964]
[1739900839586,6.2789884,94445.0,94444.0,12.80270985]
[1739900839785,6.2789884,94445.0,94444.0,9.40733875]
[1739900839992,6.2789884,94445.0,94444.0,8.63577273]
[1739900840135,6.30186293,94445.0,94444.0,7.90866098]
[1739900840352,6.30186293,94445.0,94444.0,7.59009834]
[1739900840558,6.30186293,94445.0,94444.0,6.95298659]
[1739900840860,6.30886293,94445.0,94444.0,6.63442395]
[1739900841058,6.30186293,94445.0,94444.0,5.98731558]
[1739900841243,6.30886293,94445.0,94444.0,5.66876309]
[1739900841421,6.2859884,94445.0,94444.0,5.66876309]
[1739900841783,6.25902212,94445.0,94444.0,5.66876309]
[1739900842200,6.25902212,94445.0,94444.0,5.55876309]
[1739900842407,6.25902212,94445.0,94444.0,5.24021736]
[1739900842408,6.25202212,94445.0,94444.0,5.24021736]
[1739900842617,6.25902212,94445.0,94444.0,4.92167163]
[1739900842822,6.25902212,94445.0,94444.0,4.60312928]
[1739900843174,6.25902212,94445.0,94444.0,4.28458355]
[1739900843391,6.25902212,94445.0,94444.0,3.95603444]
[1739900843591,6.25902212,94445.0,94444.0,3.63748533]
[1739900843816,6.25202212,94445.0,94444.0,2.68184477]
[1739900844025,6.25202212,94445.0,94444.0,2.04475669]
[1739900844247,5.92782212,94445.0,94444.0,1.51621773]
[1739900844447,6.19182212,94445.0,94444.0,1.08767877]
[1739900844826,6.17182212,94445.0,94444.0,0.76913981]
[1739900845027,6.16482212,94445.0,94444.0,0.76913981]
[1739900845282,6.08482212,94445.0,94444.0,0.74510419]
[1739900845590,6.11182212,94445.0,94444.0,0.41656523]
[1739900845782,6.08482212,94445.0,94444.0,0.09802627]
[1739900846086,6.10482212,94445.0,94444.0,0.09802627]
[1739900846300,6.08482212,94445.0,94444.0,0.09802627]
[1739900846486,6.10482212,94445.0,94444.0,0.09802627]
[1739900846681,6.10482212,94445.0,94444.0,0.08802627]
[1739900847051,0.2,94438.0,94437.0,0.00064309]
[1739900847255,0.59,94404.0,94403.0,0.03853102]
[1739900847479,7.19920846,94404.0,94403.0,0.03853102]
[1739900847836,5.91420846,94404.0,94403.0,0.12073102]
[1739900848042,6.01671211,94404.0,94403.0,0.12073102]
[1739900848262,6.39621951,94404.0,94403.0,0.12073102]
[1739900848599,6.25601951,94404.0,94403.0,0.12073102]
[1739900848778,5.63821951,94404.0,94403.0,0.12073102]
[1739900849180,4.44781951,94404.0,94403.0,0.12073102]
[1739900849385,3.23151586,94404.0,94403.0,0.12073102]
[1739900850637,3.3058136,94404.0,94403.0,0.12073102]
[1739900850849,2.9275136,94404.0,94403.0,0.12073102]
[1739900851063,2.43236664,94404.0,94403.0,0.12073102]
[1739900851279,2.36187029,94404.0,94403.0,0.12073102]
[1739900851693,2.70687029,94404.0,94403.0,0.12073102]
[1739900851896,2.67500329,94404.0,94403.0,0.12073102]